bitfinex/quotes_BTCUSD_20250204
["timestamp","ask_amount","ask_price","bid_price","bid_amount"]
[1738706889182,0.17100974,96250.0,96249.0,0.00014133]
[1738706889384,0.16976507,96250.0,96249.0,0.00014133]
[1738706889582,0.17100974,96250.0,96249.0,0.00014133]
[1738706889814,0.16976507,96250.0,96249.0,0.00014133]
[1738706890477,0.17100974,96250.0,96249.0,0.00014133]
[1738706890639,0.10238506,96250.0,96249.0,0.00014133]
[1738706890856,0.10238506,96250.0,96249.0,0.00114133]
[1738706891059,0.11355033,96250.0,96249.0,0.00114133]
[1738706891458,0.13216936,96250.0,96249.0,0.00114133]
[1738706891812,0.13216936,96250.0,96249.0,0.00014133]
[1738706892126,0.0297843,96250.0,96249.0,0.00014133]
[1738706892340,0.13216936,96250.0,96249.0,0.00014133]
[1738706892536,0.0297843,96250.0,96249.0,0.15598633]
[1738706892735,0.00124467,96258.0,96249.0,0.00014133]
[1738706892935,0.155841,96252.0,96249.0,0.00014133]
[1738706893141,0.207782,96255.0,96249.0,0.00014133]
[1738706893342,0.01154133,96263.0,96249.0,0.00014133]
[1738706893536,0.00124467,96262.0,96249.0,0.00014133]
[1738706893797,0.10362973,96262.0,96249.0,0.00014133]
[1738706894154,0.001,96252.0,96249.0,0.00014133]
[1738706894365,0.03229981,96261.0,96249.0,0.00014133]
[1738706894366,0.00124467,96256.0,96249.0,0.00014133]
[1738706894607,0.08295184,96250.0,96249.0,0.00014133]
[1738706894809,0.12538506,96250.0,96249.0,0.00114133]
[1738706895008,0.12538506,96250.0,96249.0,0.00014133]
[1738706895356,0.19606477,96250.0,96249.0,0.00014133]
[1738706895694,0.36898774,96250.0,96249.0,0.00014133]
[1738706895893,0.49024307,96250.0,96249.0,0.00014133]
[1738706896093,0.48024307,96250.0,96249.0,0.00014133]
[1738706896301,0.53874043,96250.0,96249.0,0.00014133]
[1738706896529,0.50574043,96250.0,96249.0,0.00014133]
[1738706896997,0.50574043,96250.0,96249.0,0.00114133]
[1738706897196,0.50574043,96250.0,96249.0,0.00014133]
[1738706897398,0.51174043,96250.0,96249.0,0.00014133]
[1738706897617,0.44106072,96250.0,96249.0,0.00014133]
[1738706897768,0.44006072,96250.0,96249.0,0.00014133]
[1738706897975,0.44306072,96250.0,96249.0,0.00014133]
[1738706898190,0.44406072,96250.0,96249.0,0.00014133]
[1738706898599,0.39655544,96250.0,96249.0,0.00014133]
[1738706898796,0.38855544,96250.0,96249.0,0.00014133]
[1738706898986,0.28606072,96250.0,96249.0,0.00014133]
[1738706899386,0.20856072,96250.0,96249.0,0.00014133]
[1738706899588,0.06017566,96250.0,96249.0,0.00014133]
[1738706899820,0.04849736,96250.0,96249.0,0.00014133]
[1738706900009,0.02984453,96265.0,96264.0,0.155821]
[1738706900564,0.02984453,96265.0,96264.0,0.40820606]
[1738706900701,0.02984453,96265.0,96264.0,0.41743717]
[1738706901293,0.08295184,96292.0,96265.0,0.173]
[1738706901531,0.01872482,96299.0,96298.0,0.155766]
[1738706901736,0.01872482,96299.0,96298.0,0.26738217]
[1738706902069,0.01872482,96299.0,96298.0,0.41738217]
[1738706902492,0.01872482,96299.0,96298.0,0.44038217]
[1738706902670,0.0002245,96346.0,96310.0,0.155747]
[1738706902995,9e-07,96311.0,96310.0,0.44036317]
[1738706903986,0.06440174,96349.0,96348.0,0.155685]
[1738706904200,0.06487353,96349.0,96348.0,0.155685]
[1738706904413,0.00047179,96349.0,96348.0,0.155685]
[1738706904605,0.00047179,96349.0,96348.0,0.26854653]
[1738706904751,0.00047179,96349.0,96348.0,0.26730117]
[1738706905390,0.00047179,96349.0,96348.0,0.41830117]
[1738706905634,0.00047179,96349.0,96348.0,0.41730117]
[1738706906465,0.00047179,96349.0,96348.0,0.44030117]
[1738706906981,7.9e-07,96349.0,96348.0,0.44130117]
[1738706907161,7.9e-07,96349.0,96348.0,0.44030117]
[1738706907578,7.9e-07,96349.0,96348.0,0.46130117]
[1738706907951,7.9e-07,96349.0,96348.0,0.46030117]
[1738706908368,7.9e-07,96349.0,96348.0,0.46130117]
[1738706908686,7.9e-07,96349.0,96348.0,0.47276094]
[1738706908893,7.9e-07,96349.0,96348.0,0.45276094]
[1738706909250,7.9e-07,96349.0,96348.0,0.27976094]
[1738706909450,7.9e-07,96349.0,96348.0,0.26830117]
[1738706909650,7.9e-07,96349.0,96348.0,0.41830117]
[1738706909886,7.9e-07,96349.0,96348.0,0.26830117]
[1738706910441,7.9e-07,96349.0,96348.0,0.41730117]
[1738706910859,7.9e-07,96349.0,96348.0,0.41830117]
[1738706911139,7.9e-07,96349.0,96348.0,0.41730117]
[1738706911529,7.9e-07,96349.0,96348.0,0.41830117]
[1738706911877,7.9e-07,96349.0,96348.0,0.16591611]
[1738706912223,7.9e-07,96349.0,96348.0,0.001]
[1738706912578,0.00124546,96349.0,96348.0,0.001]
[1738706912979,0.00124546,96349.0,96325.0,0.207628]
[1738706913191,0.155685,96348.0,96330.0,0.155714]
[1738706913400,0.155694,96343.0,96322.0,0.207636]
[1738706913604,0.20757979,96349.0,96326.0,0.08295184]
[1738706913804,0.00124467,96348.0,96323.0,0.25811006]
[1738706914006,0.00124467,96348.0,96326.0,0.15572]
[1738706914264,0.10238506,96347.0,96299.0,0.207686]
[1738706914467,0.155708,96334.0,96323.0,0.155724]
[1738706914653,0.00022529,96349.0,96347.0,0.155686]
[1738706914809,0.00022529,96349.0,96325.0,0.1742455]
[1738706915010,0.00022529,96349.0,96347.0,0.155686]
[1738706915219,0.00022529,96349.0,96348.0,0.10238506]
[1738706915617,0.00022529,96349.0,96348.0,0.25363033]
[1738706915852,0.00022529,96349.0,96348.0,0.25238506]
[1738706916633,0.00022529,96349.0,96326.0,0.207628]
[1738706916634,0.00022529,96349.0,96326.0,0.155721]
[1738706916835,0.00022529,96349.0,96348.0,0.001]
[1738706917044,0.00022529,96349.0,96334.0,0.15]
[1738706917250,0.00022529,96349.0,96327.0,0.01234457]
[1738706917251,0.00022529,96349.0,96336.0,0.15]
[1738706917479,0.00022529,96349.0,96348.0,0.001]
[1738706917812,0.00022529,96349.0,96348.0,0.10238506]
[1738706917953,0.00022529,96349.0,96348.0,0.25338506]
[1738706918154,0.00022529,96349.0,96348.0,0.27638506]
[1738706918546,0.00022529,96349.0,96348.0,0.28745566]
[1738706918806,0.00022529,96349.0,96348.0,0.29639545]
[1738706919113,0.00022471,96358.0,96353.0,0.193]
[1738706919260,0.00036576,96354.0,96353.0,0.39770948]
[1738706919463,0.00036576,96354.0,96353.0,0.39646464]
[1738706920116,0.00022428,96385.0,96376.0,0.32864]
[1738706920264,0.00022428,96385.0,96376.0,0.45620307]
[1738706920822,0.00022428,96385.0,96376.0,0.44025617]
[1738706921024,0.00022428,96385.0,96376.0,0.28461617]
[1738706921259,0.00022428,96385.0,96376.0,0.28561617]
[1738706921577,0.00022428,96385.0,96376.0,0.26161617]
[1738706921780,0.00022428,96385.0,96376.0,0.26261617]
[1738706922782,0.00022428,96385.0,96376.0,0.001]
[1738706923039,0.155633,96381.0,96366.0,0.00923111]
[1738706923278,0.00124467,96380.0,96354.0,0.00923111]
[1738706923491,0.00124467,96376.0,96354.0,0.10238506]
[1738706923703,0.00124467,96376.0,96341.0,0.08295184]
[1738706923906,0.207524,96374.0,96342.0,0.10238506]
[1738706924080,0.13476755,96373.0,96341.0,0.08309332]
[1738706924236,0.10362973,96373.0,96341.0,0.08309332]
[1738706924440,0.207533,96370.0,96341.0,0.08309332]
[1738706924648,0.00124467,96369.0,96354.0,0.001]
[1738706924998,0.155671,96358.0,96342.0,0.10238506]
[1738706925532,0.155655,96367.0,96342.0,0.10238506]
[1738706925731,0.0002245,96393.0,96351.0,0.15]
[1738706925954,0.207512,96380.0,96352.0,0.10363027]
[1738706926157,0.00022428,96385.0,96342.0,0.15]
[1738706926158,0.00124467,96376.0,96342.0,0.15]
[1738706926355,0.00124467,96376.0,96341.0,0.00114148]
[1738706926356,0.1979,96374.0,96341.0,0.00114148]
[1738706926559,0.155695,96343.0,96342.0,0.0001068]
[1738706926761,0.15,96369.0,96351.0,0.001]
[1738706926965,0.155679,96352.0,96351.0,0.001]
[1738706927165,0.155679,96352.0,96342.0,0.0001068]
[1738706927166,0.155693,96343.0,96342.0,0.0001068]
[1738706927343,0.27364736,96343.0,96342.0,0.0001068]
[1738706927561,0.40807806,96343.0,96342.0,0.0001068]
[1738706928136,0.47727806,96343.0,96342.0,0.0011068]
[1738706928294,0.55487806,96343.0,96342.0,0.0011068]
[1738706928507,0.01,96332.0,96309.0,0.08295184]
[1738706928684,0.155747,96310.0,96309.0,0.08342363]
[1738706928895,0.42370676,96310.0,96309.0,0.00047179]
[1738706929095,0.55180676,96310.0,96309.0,0.00047179]
[1738706929279,0.57480676,96310.0,96309.0,0.00047179]
[1738706929637,0.15581,96271.0,96270.0,0.08295184]
[1738706929962,0.15581,96271.0,96270.0,0.08309346]
[1738706929963,0.25819506,96271.0,96270.0,0.08309346]
[1738706930180,0.30619506,96271.0,96270.0,0.00014162]
[1738706930735,0.155809,96272.0,96270.0,0.00014162]
[1738706930943,0.00124467,96271.0,96270.0,0.00014162]
[1738706931139,0.155809,96272.0,96270.0,0.00014162]
[1738706931366,0.005,96271.0,96270.0,0.00014162]
[1738706931712,0.05342345,96271.0,96270.0,0.00014162]
[1738706932116,0.05342345,96271.0,96270.0,0.10252668]
[1738706932318,0.05342345,96271.0,96270.0,0.00014162]
[1738706932533,0.04842345,96271.0,96270.0,0.00014162]
[1738706932997,0.207729,96280.0,96270.0,0.00014162]
[1738706933154,0.155806,96274.0,96270.0,0.00014162]
[1738706933352,0.00124467,96273.0,96270.0,0.00014162]
[1738706933743,0.155809,96272.0,96270.0,0.00014162]
[1738706934576,0.00124467,96271.0,96270.0,0.00014162]
[1738706934988,0.155809,96272.0,96270.0,0.00014162]
[1738706936004,0.15,96306.0,96270.0,0.00014162]
[1738706936208,0.155808,96272.0,96270.0,0.00014162]
[1738706936879,0.03759917,96271.0,96270.0,0.00014162]
[1738706937011,0.13998423,96271.0,96270.0,0.00014162]
[1738706937215,0.10362973,96271.0,96270.0,0.00014162]
[1738706937825,0.155808,96272.0,96270.0,0.00014162]
[1738706938026,0.10362973,96271.0,96270.0,0.00014162]
[1738706938371,0.10362973,96271.0,96249.0,0.0001069]
[1738706938372,0.155844,96250.0,96249.0,0.0001069]
[1738706938546,0.40822906,96250.0,96249.0,0.00024823]
[1738706939308,0.49060897,96250.0,96249.0,0.00024823]
[1738706939964,0.155844,96250.0,96249.0,0.00024823]
[1738706941167,0.0801,96274.0,96249.0,0.00024823]
[1738706941343,0.207742,96273.0,96249.0,0.00024823]
[1738706941515,0.02981805,96286.0,96250.0,0.10238506]
[1738706941717,0.02981805,96286.0,96251.0,0.0012466]
[1738706941919,0.10362973,96285.0,96249.0,0.00024823]
[1738706942180,0.15582,96265.0,96249.0,0.00024823]
[1738706942426,0.155844,96250.0,96249.0,0.00024823]
[1738706945669,0.25947373,96250.0,96249.0,0.00024823]
[1738706945890,0.25822906,96250.0,96249.0,0.00024823]
[1738706946060,0.32560887,96250.0,96249.0,0.00024823]
[1738706946262,0.47560887,96250.0,96249.0,0.00024823]
[1738706946467,0.15,96249.0,96248.0,3.7413022]
[1738706946808,0.27538506,96249.0,96248.0,3.7413022]
[1738706947051,0.27538506,96249.0,96222.0,7e-05]
[1738706947052,0.01,96233.0,96222.0,7e-05]
[1738706947223,0.01,96246.0,96222.0,7e-05]
[1738706947224,0.155886,96224.0,96222.0,7e-05]
[1738706947366,0.305886,96224.0,96222.0,7e-05]
[1738706947586,0.305886,96224.0,96223.0,0.99959809]
[1738706947797,0.4218262,96224.0,96223.0,0.9899141]
[1738706948000,0.4318262,96224.0,96223.0,0.96583525]
[1738706948245,0.4418262,96224.0,96223.0,0.77399505]
[1738706948444,0.56964063,96224.0,96223.0,0.66646697]
[1738706948680,0.58907369,96224.0,96223.0,0.65892364]
[1738706948823,0.60191369,96224.0,96223.0,0.64140233]
[1738706949177,0.60091369,96224.0,96223.0,0.61297245]
[1738706949381,0.305907,96211.0,96210.0,0.00043971]
[1738706949583,0.25829206,96211.0,96210.0,0.00043971]
[1738706950081,0.27672512,96211.0,96210.0,0.00043971]
[1738706950440,0.17434006,96211.0,96210.0,0.00043971]
[1738706950637,0.17448123,96211.0,96210.0,0.00043971]
[1738706950905,0.33725755,96211.0,96210.0,0.00043971]
[1738706951124,0.27686629,96211.0,96210.0,0.00043971]
[1738706951324,0.01957423,96211.0,96210.0,0.00043971]
[1738706951537,0.00114117,96211.0,96210.0,0.00043971]
[1738706951749,0.00014117,96211.0,96210.0,0.10794457]
[1738706951894,0.00014117,96211.0,96210.0,0.10669743]
[1738706952102,0.01145921,96254.0,96212.0,0.023]
[1738706952311,0.0002245,96270.0,96246.0,0.15585]
[1738706952464,0.08309341,96247.0,96226.0,0.01950053]
[1738706952670,0.00014157,96247.0,96246.0,0.00503344]
[1738706952864,0.00014157,96247.0,96245.0,0.155851]
[1738706953065,0.00014157,96247.0,96246.0,0.00492928]
[1738706953500,0.00014157,96247.0,96221.0,0.207854]
[1738706953707,0.00014157,96247.0,96246.0,0.00487256]
[1738706953708,0.15599057,96247.0,96246.0,0.00487256]
[1738706953916,0.155854,96244.0,96222.0,0.10238506]
[1738706954112,0.00014157,96247.0,96223.0,0.20909697]
[1738706954320,0.00014157,96247.0,96224.0,0.10238506]
[1738706954514,0.155854,96244.0,96225.0,0.155884]
[1738706954724,0.00124467,96243.0,96233.0,0.15587]
[1738706954928,0.00124467,96243.0,96213.0,0.16950053]
[1738706955130,0.00014157,96247.0,96222.0,0.001]
[1738706955370,0.15,96245.0,96222.0,0.001]
[1738706955566,0.155881,96228.0,96222.0,0.001]
[1738706955763,0.155887,96224.0,96222.0,0.001]
[1738706955967,0.00124467,96223.0,96222.0,0.001]
[1738706956368,0.155882,96227.0,96216.0,0.155898]
[1738706956667,0.15587,96234.0,96223.0,0.155886]
[1738706956851,0.10238506,96244.0,96233.0,0.001]
[1738706957047,0.15587,96235.0,96233.0,0.001]
[1738706957266,0.11373824,96244.0,96210.0,0.04903971]
[1738706957661,0.11373824,96244.0,96216.0,0.001]
[1738706957860,0.11373824,96244.0,96216.0,0.208865]
[1738706958098,0.06234,96239.0,96221.0,0.15589]
[1738706958305,0.155871,96234.0,96233.0,0.001]
[1738706958503,0.01135318,96244.0,96233.0,0.001]
[1738706958504,0.00014157,96247.0,96233.0,0.001]
[1738706958869,0.00138624,96247.0,96233.0,0.001]
[1738706959071,0.00014157,96247.0,96233.0,0.001]
[1738706959278,0.00014157,96247.0,96245.0,0.155851]
[1738706959481,0.00014157,96247.0,96246.0,0.15353172]
[1738706959660,0.00014157,96247.0,96246.0,0.15353168]
[1738706959859,0.00014157,96247.0,96246.0,0.32653168]
[1738706960087,0.0002245,96270.0,96269.0,0.155813]
[1738706960332,0.0002245,96270.0,96269.0,0.17531353]
[1738706960806,0.0002245,96270.0,96259.0,0.01950053]
[1738706961043,0.0002245,96270.0,96246.0,0.15328506]
[1738706961044,0.207753,96268.0,96247.0,0.01950053]
[1738706961254,0.0002245,96270.0,96247.0,0.01950053]
[1738706961429,0.0002245,96270.0,96269.0,0.001]
[1738706961603,0.1560355,96270.0,96269.0,0.001]
[1738706961867,0.3637855,96270.0,96269.0,0.001]
[1738706962017,0.0002245,96270.0,96269.0,0.001]
[1738706962667,0.04881307,96270.0,96269.0,0.001]
[1738706963315,0.04881307,96270.0,96261.0,0.155825]
[1738706963316,0.20462507,96270.0,96261.0,0.155825]
[1738706963834,0.155824,96263.0,96247.0,0.001]
[1738706963987,0.02155079,96269.0,96232.0,0.15822953]
[1738706963988,0.155841,96252.0,96232.0,0.15822953]
[1738706964163,0.00124467,96251.0,96233.0,0.10238506]
[1738706964341,0.00124467,96267.0,96243.0,0.155854]
[1738706964551,0.207757,96266.0,96242.0,0.155856]
[1738706964759,0.155831,96258.0,96247.0,0.155847]
[1738706964976,0.00124467,96265.0,96234.0,0.00124677]
[1738706965195,0.155838,96254.0,96236.0,0.155866]
[1738706965435,0.155833,96257.0,96247.0,0.155847]
[1738706965654,0.15583,96259.0,96250.0,0.155843]
[1738706965828,0.00124467,96258.0,96243.0,0.207806]
[1738706966042,0.155858,96242.0,96232.0,0.00147187]
[1738706966264,0.00124467,96241.0,96232.0,0.00147187]
[1738706966600,0.04860805,96256.0,96241.0,0.155858]
[1738706966832,0.00047179,96241.0,96233.0,0.10238506]
[1738706967027,0.00047179,96241.0,96234.0,0.207826]
[1738706967315,0.00047179,96241.0,96233.0,0.10238506]
[1738706967508,0.01868791,96240.0,96237.0,0.155864]
[1738706967710,0.01868791,96240.0,96238.0,0.155862]
[1738706967928,0.01868791,96240.0,96237.0,0.163682]
[1738706968280,0.01868791,96240.0,96238.0,0.155862]
[1738706968482,0.01868791,96240.0,96238.0,0.25824706]
[1738706969672,0.00047179,96241.0,96240.0,0.15586]
[1738706969798,0.00047179,96241.0,96240.0,0.25949183]
[1738706969994,0.00047179,96241.0,96240.0,0.40824506]
[1738706970199,0.00047179,96241.0,96240.0,0.43124506]
[1738706970397,0.00047179,96241.0,96240.0,0.44124506]
[1738706970811,0.01297723,96289.0,96240.0,0.44124506]
[1738706970812,0.01297723,96289.0,96269.0,0.155813]
[1738706971021,0.01297723,96289.0,96269.0,0.25819806]
[1738706971934,0.01297723,96289.0,96269.0,0.40819806]
[1738706972115,0.01297723,96323.0,96273.0,0.01]
[1738706972317,0.01297723,96323.0,96321.0,0.155728]
[1738706972512,0.01297723,96323.0,96322.0,0.15]
[1738706972797,0.01297723,96323.0,96322.0,0.1512457]
[1738706972955,0.01297723,96323.0,96322.0,0.1742457]
[1738706973168,0.00014164,96329.0,96328.0,0.315717]
[1738706973374,0.00014164,96329.0,96328.0,0.348717]
[1738706973728,0.00653277,96335.0,96334.0,0.338708]
[1738706973899,0.00653277,96335.0,96334.0,0.45109306]
[1738706974101,0.01812338,96366.0,96365.0,0.155658]
[1738706974474,0.0004717,96366.0,96365.0,0.155658]
[1738706974688,0.0004717,96366.0,96351.0,0.15]
[1738706974896,0.0004717,96366.0,96365.0,0.10238506]
[1738706975286,0.0004717,96366.0,96365.0,0.25363004]
[1738706975411,0.0004717,96366.0,96365.0,0.10238506]
[1738706975620,0.0004717,96366.0,96365.0,0.10300786]
[1738706975884,0.0004717,96366.0,96364.0,0.155658]
[1738706976018,0.0004717,96366.0,96364.0,0.15628121]
[1738706976229,0.0004717,96366.0,96347.0,0.207582]
[1738706976433,0.0004717,96366.0,96352.0,0.10300827]
[1738706977099,0.0004717,96366.0,96354.0,0.155675]
[1738706977253,0.0006962,96366.0,96334.0,0.01]
[1738706977466,0.0006962,96366.0,96341.0,0.023]
[1738706977668,0.0006962,96366.0,96343.0,0.173]
[1738706977865,0.0006962,96366.0,96345.0,0.173]
[1738706978085,0.0006962,96366.0,96353.0,0.15]
[1738706978265,0.0006962,96366.0,96355.0,0.15]
[1738706978465,0.0006962,96366.0,96355.0,0.25238506]
[1738706979029,0.0006962,96366.0,96351.0,0.155679]
[1738706979245,0.0006962,96366.0,96352.0,0.10238506]
[1738706979807,0.0006962,96366.0,96341.0,0.155696]
[1738706980005,0.0006962,96366.0,96344.0,0.207589]
[1738706980187,0.0006962,96366.0,96347.0,0.155685]
[1738706980390,0.0006962,96366.0,96347.0,0.25807006]
[1738706980814,0.0006962,96366.0,96347.0,0.30996706]
[1738706980997,0.0006962,96366.0,96351.0,0.01]
[1738706981212,0.0006962,96366.0,96365.0,0.173]
[1738706981411,0.0006962,96366.0,96365.0,0.27538506]
[1738706981632,0.0006962,96366.0,96365.0,0.12538506]
[1738706981837,0.0006962,96366.0,96340.0,0.33526318]
[1738706982039,0.0006962,96366.0,96341.0,0.10238506]
[1738706982260,0.0006962,96366.0,96342.0,0.207593]
[1738706982503,0.0006962,96366.0,96345.0,0.207585]
[1738706982708,0.0006962,96366.0,96350.0,0.155682]
[1738706982910,0.0006962,96366.0,96351.0,0.10238506]
[1738706983098,0.0006962,96366.0,96346.0,0.155688]
[1738706983299,0.0006962,96366.0,96343.0,0.207591]
[1738706983502,0.0006962,96366.0,96348.0,0.155685]
[1738706983915,0.0006962,96366.0,96347.0,0.023]
[1738706984083,0.0006962,96366.0,96350.0,0.33526318]
[1738706984243,0.0006962,96366.0,96357.0,0.15567]
[1738706985054,0.0006962,96366.0,96352.0,0.155678]
[1738706985223,0.0006962,96366.0,96350.0,0.33526318]
[1738706985381,0.0006962,96366.0,96351.0,0.155679]
[1738706985581,0.0006962,96366.0,96341.0,0.207595]
[1738706985788,0.0006962,96366.0,96348.0,0.155684]
[1738706985986,0.0006962,96366.0,96339.0,0.207599]
[1738706985987,0.0006962,96366.0,96337.0,0.02083966]
[1738706986185,0.0006962,96366.0,96342.0,0.155694]
[1738706986413,0.0006962,96366.0,96338.0,0.10238506]
[1738706986736,0.15566,96364.0,96343.0,0.155693]
[1738706986873,0.0006962,96366.0,96340.0,0.023]
[1738706987068,0.14400656,96365.0,96332.0,0.023]
[1738706987433,0.14400656,96365.0,96320.0,0.33941418]
[1738706987434,0.15155657,96364.0,96310.0,0.41826318]
[1738706987647,0.10238506,96363.0,96321.0,0.02124816]
[1738706987907,0.15,96358.0,96300.0,0.33526318]
[1738706988134,0.10238506,96350.0,96313.0,0.08295184]
[1738706988667,0.1039423,96319.0,96295.0,0.08295184]
[1738706988873,0.207655,96314.0,96295.0,0.08295184]
[1738706989210,0.207655,96314.0,96283.0,0.08295184]
[1738706989211,0.15,96310.0,96283.0,0.08295184]
[1738706989420,0.10238506,96309.0,96283.0,0.08295184]
[1738706989574,0.15577,96296.0,96273.0,0.08295184]
[1738706989778,0.1039427,96309.0,96283.0,0.00014164]
[1738706990128,0.155762,96301.0,96283.0,0.15593064]
[1738706990333,0.10238506,96301.0,96283.0,0.00014164]
[1738706990497,0.10238506,96301.0,96289.0,0.15578]
[1738706990668,0.10238506,96301.0,96283.0,0.00014164]
[1738706990865,0.10238506,96301.0,96284.0,0.155788]
[1738706991107,0.10238506,96301.0,96283.0,0.00014164]
[1738706991323,0.10238506,96301.0,96288.0,0.155781]
[1738706991686,0.10238506,96301.0,96283.0,0.00014164]
[1738706992079,0.1039427,96300.0,96283.0,0.00014164]
[1738706992477,0.155775,96293.0,96283.0,0.00014164]
[1738706992685,0.10238506,96300.0,96290.0,0.155778]
[1738706992889,0.0111782,96306.0,96284.0,0.207718]
[1738706993167,0.15,96312.0,96283.0,0.00014164]
[1738706993168,0.155751,96308.0,96283.0,0.00014164]
[1738706993371,0.10238506,96305.0,96283.0,0.00014164]
[1738706993585,0.155788,96285.0,96283.0,0.00014164]
[1738706993787,0.10394301,96284.0,96283.0,0.00014164]
[1738706994932,0.10394309,96284.0,96283.0,0.00014164]
[1738706995155,0.10238506,96284.0,96283.0,0.00014164]
[1738706995364,0.15053182,96284.0,96283.0,0.00014164]
[1738706995548,0.38033182,96284.0,96283.0,0.00014164]
[1738706995758,0.37877387,96284.0,96283.0,0.00014164]
[1738706996959,0.37977387,96284.0,96283.0,0.00014164]
[1738706997136,0.26465628,96284.0,96283.0,0.00014164]
[1738706999419,0.26365628,96284.0,96283.0,0.00014164]
[1738707000003,0.155818,96266.0,96265.0,0.09206971]
[1738707000209,0.25820306,96266.0,96265.0,0.09206971]
[1738707000413,0.40820306,96266.0,96265.0,0.09206971]
[1738707000611,0.155858,96241.0,96223.0,0.155886]
[1738707000785,0.207798,96248.0,96229.0,0.207836]
[1738707000964,0.155853,96245.0,96229.0,0.207836]
[1738707001169,0.0801,96283.0,96250.0,0.155843]
[1738707001366,0.31012906,96272.0,96242.0,0.207809]
[1738707001589,0.207746,96271.0,96251.0,0.155841]
[1738707001792,0.155825,96262.0,96242.0,0.207809]
[1738707002036,0.25821206,96261.0,96250.0,0.155843]
[1738707002242,0.357733,96278.0,96232.0,0.079]
[1738707002380,0.155818,96266.0,96242.0,0.230809]
[1738707002581,0.10238506,96272.0,96244.0,0.023]
[1738707002877,0.10238506,96272.0,96241.0,0.10238506]
[1738707002878,0.10238506,96272.0,96261.0,0.207767]
[1738707003079,0.01091412,96273.0,96241.0,0.10238506]
[1738707003279,0.20773,96279.0,96241.0,0.10238506]
[1738707003280,0.155802,96276.0,96267.0,0.155816]
[1738707003509,0.10238506,96275.0,96211.0,0.010107]
[1738707003708,0.10394308,96275.0,96221.0,0.01]
[1738707003927,0.15,96273.0,96230.0,0.02057901]
[1738707004147,0.15,96270.0,96243.0,0.08295184]
[1738707004368,0.01103999,96279.0,96232.0,0.01]
[1738707004573,0.10238506,96278.0,96245.0,0.023]
[1738707004775,0.01103999,96279.0,96261.0,0.023]
[1738707004976,0.00014136,96279.0,96278.0,0.155798]
[1738707005176,0.00014136,96279.0,96272.0,0.155808]
[1738707005424,0.00014136,96279.0,96263.0,0.207764]
[1738707005628,0.00014136,96279.0,96252.0,0.02090289]
[1738707005883,0.00014136,96279.0,96275.0,0.155802]
[1738707006007,0.15593836,96279.0,96252.0,0.02090289]
[1738707006214,0.00014136,96279.0,96257.0,0.023]
[1738707006413,0.00014136,96279.0,96262.0,0.207764]
[1738707006700,0.00014136,96279.0,96277.0,0.1558]
[1738707006830,0.00014136,96279.0,96278.0,0.10238506]
[1738707007026,0.00014136,96279.0,96278.0,0.12538506]
[1738707008421,0.00014136,96279.0,96278.0,0.023]
[1738707008628,0.00014136,96279.0,96266.0,0.207757]
[1738707009005,0.00014136,96279.0,96278.0,0.155798]
[1738707009206,0.00014136,96279.0,96246.0,0.0483]
[1738707009412,0.00014136,96279.0,96254.0,0.10238506]
[1738707009610,0.00014136,96279.0,96255.0,0.1853369]
[1738707009794,0.00014136,96279.0,96255.0,0.12538506]
[1738707009994,0.00014136,96279.0,96271.0,0.207745]
[1738707010211,0.00014136,96279.0,96256.0,0.023]
[1738707010415,0.00014136,96279.0,96258.0,0.023]
[1738707010631,0.10252642,96279.0,96246.0,0.0483]
[1738707010859,0.00014136,96279.0,96249.0,0.155845]
[1738707011035,0.00014136,96279.0,96272.0,0.155808]
[1738707011243,0.00014136,96279.0,96269.0,0.155812]
[1738707011450,0.00014136,96279.0,96251.0,0.023]
[1738707011647,0.10238506,96278.0,96251.0,0.155841]
[1738707011850,0.10238506,96278.0,96247.0,0.08295184]
[1738707012060,0.00014136,96279.0,96248.0,0.10238506]
[1738707012300,0.10275092,96279.0,96248.0,0.10238506]
[1738707012506,0.155807,96273.0,96262.0,0.155824]
[1738707012640,0.10238506,96272.0,96241.0,0.15]
[1738707012848,0.00036586,96279.0,96243.0,0.23295184]
[1738707013052,0.155807,96273.0,96265.0,0.155819]
[1738707013257,0.10275092,96279.0,96245.0,0.173]
[1738707013494,0.155809,96272.0,96263.0,0.155822]
[1738707013701,0.155816,96267.0,96240.0,0.0001069]
[1738707013922,0.207746,96271.0,96245.0,0.023]
[1738707014174,0.15581,96271.0,96248.0,0.207796]
[1738707014341,0.15581,96271.0,96253.0,0.207783]
[1738707014553,0.1558,96278.0,96250.0,0.023]
[1738707014758,0.15582,96265.0,96254.0,0.155837]
[1738707014936,0.1868949,96277.0,96261.0,0.155826]
[1738707014937,0.207745,96272.0,96261.0,0.155826]
[1738707015136,0.31013006,96272.0,96261.0,0.155826]
[1738707015739,0.31013006,96272.0,96245.0,0.15]
[1738707015740,0.155814,96269.0,96259.0,0.155828]
[1738707015944,0.207746,96271.0,96260.0,0.155826]
[1738707016348,0.10238506,96272.0,96246.0,0.023]
[1738707016690,0.155817,96267.0,96257.0,0.155831]
[1738707016896,0.04659531,96266.0,96227.0,0.207841]
[1738707017093,0.10238506,96266.0,96238.0,0.207817]
[1738707017305,0.10238506,96266.0,96224.0,0.08295184]
[1738707017505,0.155836,96255.0,96241.0,0.207811]
[1738707017705,0.207775,96258.0,96246.0,0.15585]
[1738707018004,0.155834,96256.0,96246.0,0.155849]
[1738707018223,0.207759,96265.0,96232.0,0.20783]
[1738707018446,0.00036586,96279.0,96233.0,0.023]
[1738707018447,0.10394333,96264.0,96233.0,0.023]
[1738707018635,0.15,96263.0,96220.0,0.0806]
[1738707018836,0.10394348,96262.0,96230.0,0.207833]
[1738707019047,0.155857,96242.0,96204.0,0.0001069]
[1738707019285,0.25394383,96241.0,96208.0,0.08295184]
[1738707019434,0.31414594,96241.0,96208.0,0.08295184]
[1738707019983,0.155905,96212.0,96208.0,0.08295184]
[1738707020185,0.151559,96238.0,96208.0,0.08295184]
[1738707020338,0.151559,96238.0,96204.0,0.0001069]
[1738707020339,0.155903,96214.0,96211.0,0.00057879]
[1738707020532,0.155904,96213.0,96211.0,0.00057879]
[1738707020721,0.25828906,96213.0,96211.0,0.00057879]
[1738707021475,0.10238506,96213.0,96211.0,0.00057879]
[1738707022361,0.26418263,96212.0,96211.0,0.00057879]
[1738707022539,0.26262357,96212.0,96211.0,0.00057879]
[1738707022941,0.305912,96208.0,96204.0,0.0001069]
[1738707023120,0.15,96207.0,96206.0,7.756e-05]
[1738707023324,0.305918,96204.0,96203.0,0.00507591]
[1738707023533,0.47007801,96204.0,96203.0,0.00507591]